bitfinex/quotes_ETHUSD_20240924
["timestamp","ask_amount","ask_price","bid_price","bid_amount"]
[1727186790138,0.752,2617.3,2616.1,0.53584743]
[1727186790346,0.752,2617.3,2616.1,0.040066]
[1727186790347,3.82184,2616.6,2616.1,0.040066]
[1727186790527,3.82194,2616.5,2616.1,0.040066]
[1727186790743,5.030017,2617.3,2616.1,0.040066]
[1727186790744,4.209247,2617.3,2616.1,0.040066]
[1727186790911,3.82205,2616.4,2616.1,0.040066]
[1727186791113,3.82198,2616.5,2616.1,0.040066]
[1727186791363,3.8222,2616.3,2616.1,0.040066]
[1727186791858,3.82146,2616.8,2616.1,0.040066]
[1727186792163,0.8029967,2617.2,2616.1,0.040066]
[1727186792164,3.82198,2616.5,2616.1,0.040066]
[1727186792317,3.82166,2616.7,2616.1,0.040066]
[1727186792529,3.82166,2616.7,2616.1,3.862506]
[1727186792716,3.82166,2616.7,2616.2,0.7684996]
[1727186793053,3.82125,2617.0,2616.3,3.82217]
[1727186793215,3.82194,2616.5,2616.1,0.040066]
[1727186793417,4.62965,2616.9,2616.1,0.040066]
[1727186793722,3.82233,2616.2,2616.1,0.040066]
[1727186795779,4.63063,2616.2,2616.1,0.040066]
[1727186797106,3.8222,2616.3,2616.1,0.040066]
[1727186797614,3.82233,2616.2,2616.1,0.859466]
[1727186797977,3.8222,2616.3,2616.1,0.859466]
[1727186798430,3.8222,2616.3,2616.1,0.040066]
[1727186798606,3.82233,2616.2,2616.1,0.040066]
[1727186801519,3.82156,2616.8,2616.4,0.8194]
[1727186801939,3.82156,2616.8,2616.4,1.283557]
[1727186802704,3.82123,2617.0,2616.5,0.07642908]
[1727186803026,3.82096,2617.2,2616.4,5.105507]
[1727186803231,5.40780193,2618.3,2617.2,0.8194]
[1727186803440,5.40780193,2618.3,2617.2,4.64025]
[1727186803441,0.8083,2618.3,2617.2,4.64025]
[1727186803606,3.81996,2617.9,2617.3,4.284745]
[1727186803803,0.8083,2618.3,2617.3,0.464025]
[1727186804045,3.81994,2617.9,2617.3,4.284625]
[1727186804343,3.82002,2617.8,2617.2,4.64018]
[1727186804553,3.81975,2618.0,2617.3,3.82063]
[1727186804846,1.57211605,2619.2,2617.5,3.82042]
[1727186804847,3.81949,2618.2,2617.5,3.82042]
[1727186805147,3.81956,2618.2,2617.5,3.82042]
[1727186805313,3.81956,2618.2,2617.6,3.82027]
[1727186805660,3.81874,2618.7,2618.0,3.81959]
[1727186805959,3.857636,2619.5,2617.8,0.8194]
[1727186805960,3.81886,2618.6,2617.8,0.8194]
[1727186806297,3.81886,2618.6,2618.0,3.81961]
[1727186806544,3.81858,2618.8,2618.1,0.381961]
[1727186806842,3.81871,2618.7,2618.1,4.201511]
[1727186807029,3.81858,2618.8,2618.2,3.81941]
[1727186807231,3.81858,2618.8,2618.3,0.4201371]
[1727186807232,3.81869,2618.7,2618.3,0.4201371]
[1727186807453,3.81854,2618.8,2618.3,0.8325]
[1727186807740,3.81827,2619.0,2618.3,0.8325]
[1727186807950,7.63664,2619.0,2618.3,4.65166]
[1727186808131,7.63664,2619.0,2618.4,0.465166]
[1727186808132,3.81839,2619.0,2618.4,0.465166]
[1727186808442,0.7806,2619.3,2618.3,0.8325]
[1727186808443,3.81869,2618.7,2618.3,0.8325]
[1727186808661,3.81845,2618.9,2618.3,0.8325]
[1727186808801,3.81845,2618.9,2618.3,4.65163]
[1727186809002,3.81813,2619.1,2618.4,0.465163]
[1727186809204,3.81826,2619.0,2618.4,0.465163]
[1727186809555,3.8182,2619.1,2618.4,4.284273]
[1727186809716,3.81848,2618.9,2618.4,0.465163]
[1727186810107,3.81802,2619.2,2618.3,0.8325]
[1727186810304,3.81879,2618.7,2618.3,0.8325]
[1727186810502,3.81868,2618.8,2618.3,0.8325]
[1727186810748,3.81876,2618.7,2618.3,0.8325]
[1727186811262,0.820666,2619.5,2618.3,4.65168]
[1727186811263,3.81836,2619.0,2618.3,4.65168]
[1727186811478,3.8289141,2619.0,2618.3,8.47085]
[1727186811742,3.81842,2618.9,2618.3,4.65167]
[1727186811925,3.81842,2618.9,2618.4,0.465167]
[1727186812330,0.0105541,2619.0,2618.4,0.465167]
[1727186812503,3.81817,2619.1,2618.4,0.465167]
[1727186812504,3.8289541,2618.9,2618.4,0.465167]
[1727186813430,3.8289541,2618.9,2618.4,4.284267]
[1727186813606,0.0105541,2618.9,2618.5,0.5116767]
[1727186813808,0.0105541,2618.9,2618.5,4.3306267]
[1727186814019,0.0105541,2618.9,2618.5,0.5116767]
[1727186814020,3.8289541,2618.9,2618.5,0.5116767]
[1727186814221,0.0105541,2618.9,2618.5,0.5116767]
[1727186814447,0.0105541,2618.9,2618.6,0.50943372]
[1727186814743,0.0105541,2618.9,2618.3,8.47086]
[1727186814951,3.8289541,2618.9,2618.3,8.47085]
[1727186815269,3.8289541,2618.9,2618.3,4.65167]
[1727186815649,3.8289541,2618.9,2618.3,8.47085]
[1727186815826,3.8289541,2618.9,2618.4,0.847085]
[1727186816730,0.0105541,2618.9,2618.5,3.81888]
[1727186816935,0.0105541,2618.9,2618.5,7.63778]
[1727186817129,0.0105541,2618.9,2618.5,3.81888]
[1727186817365,0.0105541,2618.9,2618.6,0.4665965]
[1727186817756,0.0105541,2618.9,2618.7,0.8325]
[1727186817963,0.0105541,2618.9,2618.8,3.81854]
[1727186820398,0.0382043,2619.6,2618.8,3.0]
[1727186820676,0.0382043,2619.6,2619.5,4.65002]
[1727186820875,0.0382043,2619.6,2619.5,5.496787]
[1727186821079,0.0382043,2619.6,2619.5,1.679267]
[1727186821280,0.0382043,2619.6,2619.4,3.81757]
[1727186821430,0.0382043,2619.6,2619.5,3.81752]
[1727186824395,3.81597,2620.6,2619.5,3.81752]
[1727186824396,0.065565,2621.9,2619.5,0.7661]
[1727186824549,1.98595531,2622.9,2619.5,0.7661]
[1727186824550,0.25767153,2622.7,2619.5,1.25]
[1727186824895,0.0511363,2626.1,2625.2,2.0]
[1727186825044,0.77734537,2627.6,2625.2,2.0]
[1727186825045,0.77734537,2629.1,2627.6,3.15701135]
[1727186825246,0.77734537,2629.1,2626.3,3.0]
[1727186825247,0.0382894,2628.7,2628.5,3.80443]
[1727186825588,0.0382894,2628.7,2627.9,3.80524]
[1727186825589,0.0766718,2630.3,2628.6,0.380443]
[1727186825740,0.0766718,2630.3,2628.7,7.60824]
[1727186825741,0.30750465,2629.7,2628.7,7.60824]
[1727186825948,0.0766718,2630.3,2628.8,0.760824]
[1727186826156,0.34251709,2630.3,2628.2,4.57097]
[1727186826393,3.80228,2630.0,2628.3,3.0]
[1727186826604,3.96685528,2630.2,2628.3,3.0]
[1727186826745,4.02331107,2630.0,2628.3,0.81053102]
[1727186826946,0.40435271,2630.1,2628.2,3.7661]
[1727186827269,0.40435271,2630.1,2628.6,4.33921022]
[1727186827448,2.0766718,2631.9,2629.4,4.33921022]
[1727186827449,3.80103,2630.9,2629.4,4.33921022]
[1727186827803,3.80103,2630.9,2628.8,0.7661]
[1727186827804,0.7889,2630.8,2629.3,3.80328]
[1727186827998,0.7889,2630.8,2628.8,3.7661]
[1727186828144,0.7889,2630.8,2629.3,3.80323]
[1727186828342,0.7889,2630.8,2628.9,0.81053102]
[1727186828556,3.8001,2631.6,2629.8,3.80256]
[1727186828557,0.7889,2631.6,2629.8,3.80256]
[1727186828762,0.7889,2631.6,2630.1,3.8021]
[1727186829693,0.7889,2631.6,2629.3,3.80328]
[1727186829694,0.7889,2631.6,2629.5,3.8029]
[1727186829990,4.33921022,2631.2,2629.8,3.80256]
[1727186830196,0.43392102,2631.1,2629.8,3.80256]
[1727186830500,4.33921022,2630.8,2628.9,0.81053102]
[1727186830660,4.33921022,2630.8,2628.8,0.7661]
[1727186830866,4.33921022,2630.8,2628.8,4.57008]
[1727186831067,4.33921022,2630.4,2628.8,0.7661]
[1727186831367,4.33921022,2630.4,2629.1,3.80352]
[1727186831368,0.43392102,2630.3,2629.1,3.80352]
[1727186831551,4.33921022,2630.4,2628.8,0.7661]
[1727186831552,4.33921022,2630.4,2628.9,3.80386]
[1727186831747,4.33921022,2630.4,2629.4,3.80307]
[1727186832002,4.33921022,2630.0,2629.2,3.80342]
[1727186832152,0.7889,2630.2,2628.7,3.80415]
[1727186832350,4.33921022,2630.1,2629.0,3.8037]
[1727186832760,4.33921022,2630.9,2629.8,3.80253]
[1727186833098,4.33921022,2630.9,2628.6,7.682]
[1727186833400,4.33921022,2630.9,2629.5,7.56896]
[1727186833693,0.45559778,2631.8,2630.0,3.0]
[1727186833694,4.33921022,2631.8,2630.0,3.0]
[1727186833897,4.33921022,2631.8,2630.6,3.80137]
[1727186834101,0.0766718,2631.9,2630.6,3.80137]
[1727186834248,0.0766718,2631.9,2630.8,3.0]
[1727186834444,0.0766718,2631.9,2630.6,3.0]
[1727186834707,0.0766718,2631.9,2630.9,3.80097]
[1727186834852,4.33921022,2632.7,2630.5,3.7661]
[1727186834853,4.33921022,2632.7,2631.6,3.79995]
[1727186835052,4.58715,2632.8,2631.4,3.80023]
[1727186835265,0.7889,2632.8,2631.2,3.0]
[1727186835596,0.7889,2632.8,2630.5,0.7661]
[1727186835800,0.7889,2632.8,2631.2,3.80054]
[1727186836002,0.7889,2632.8,2631.8,3.79965]
[1727186836290,0.7889,2632.8,2630.9,3.80096]
[1727186836460,3.79881,2632.5,2630.9,3.80094]
[1727186836666,0.7889,2632.8,2630.1,0.3]
[1727186836851,0.7889,2632.8,2631.1,3.80067]
[1727186837189,3.79853,2632.6,2631.3,3.80026]
[1727186837393,0.7889,2632.8,2631.2,3.8005]
[1727186837394,3.79868,2632.5,2631.2,3.80041]
[1727186837589,0.379868,2632.4,2631.5,3.80005]
[1727186837803,0.55,2632.5,2630.9,3.80095]
[1727186838091,0.55,2632.7,2630.7,3.80126]
[1727186838092,3.79971,2631.8,2630.7,3.80126]
[1727186838300,0.379971,2631.7,2630.8,3.80111]
[1727186838465,3.79914,2632.2,2631.1,3.80069]
[1727186838668,3.79914,2632.2,2630.1,0.3]
[1727186838669,3.79886,2632.4,2630.8,3.80111]
[1727186838872,4.178876,2632.3,2630.1,0.3]
[1727186839073,0.55,2632.3,2631.0,3.80082]
[1727186839285,0.55,2632.3,2630.1,4.102]
[1727186839286,3.80024,2631.5,2630.1,4.102]
[1727186839496,4.180284,2631.4,2630.1,3.802]
[1727186839656,6.79926,2632.1,2629.9,3.80242]
[1727186839657,0.7889,2630.9,2629.9,3.80242]
[1727186839858,3.80044,2631.3,2629.5,3.80287]
[1727186840088,3.0,2632.1,2629.5,3.80287]
[1727186840089,3.79986,2631.7,2629.5,3.80287]
[1727186840303,3.79998,2631.6,2630.5,3.80149]
[1727186840464,3.79984,2631.7,2630.6,3.80138]
[1727186840665,3.79998,2631.6,2630.2,3.74904]
[1727186840901,3.80037,2631.4,2630.2,3.74904]
[1727186841100,3.80003,2631.6,2629.8,3.0]
[1727186841304,3.80003,2631.6,2630.4,3.80158]
[1727186841617,3.79973,2631.8,2630.7,3.80116]
[1727186841796,0.379973,2631.7,2630.7,3.80116]
[1727186842126,3.80123,2630.8,2629.7,0.380278]
[1727186842268,3.379973,2631.7,2630.0,3.80217]
[1727186842269,3.80057,2631.2,2630.0,3.80217]
[1727186842470,3.80029,2631.4,2629.4,3.80314]
[1727186842667,3.80029,2631.4,2628.9,3.80372]
[1727186842668,0.379973,2631.7,2630.6,3.80139]
[1727186842896,4.968693,2631.7,2630.6,3.80139]
[1727186843103,0.7889,2631.7,2630.2,3.80194]
[1727186843420,4.58872,2631.7,2630.6,3.80138]
[1727186843714,0.7889,2632.3,2630.7,0.380138]
[1727186844025,3.79939,2632.0,2630.6,3.7661]
[1727186844166,3.79969,2631.8,2630.6,3.80134]
[1727186844513,4.179789,2631.7,2630.6,3.8014]
[1727186844720,3.79982,2631.7,2630.6,3.8014]
[1727186844932,0.7889,2632.3,2630.6,3.80139]
[1727186845205,0.7889,2632.3,2630.4,3.80164]
[1727186845412,0.55,2632.2,2630.0,0.036]
[1727186845595,3.80099,2630.9,2630.0,0.036]
[1727186845806,6.34904,2632.3,2630.0,0.036]
[1727186845807,3.0,2632.2,2630.0,0.036]
[1727186846097,3.80059,2631.2,2630.1,3.80212]
[1727186846277,3.80031,2631.4,2630.0,3.83822]
[1727186846479,3.80013,2631.5,2630.5,3.80141]
[1727186846680,0.4728931,2632.2,2630.5,3.80146]
[1727186846897,3.79979,2631.8,2630.5,3.80146]
[1727186847101,3.79979,2631.8,2630.2,3.0]
[1727186847102,3.79979,2631.8,2630.8,3.80112]
[1727186847604,3.7977,2633.2,2630.7,3.80124]
[1727186847605,3.79965,2631.9,2630.7,3.80124]
[1727186847784,4.179745,2631.8,2630.2,3.0]
[1727186847971,3.79978,2631.8,2630.6,3.80139]
[1727186848171,3.79978,2631.8,2630.8,3.80101]
[1727186848414,0.7889,2632.4,2630.8,3.80101]
[1727186848574,3.7994,2632.0,2630.2,3.0]
[1727186848778,3.7994,2632.0,2631.0,3.80082]
[1727186849113,3.79953,2631.9,2630.8,3.80112]
[1727186849420,3.79979,2631.8,2630.7,3.80119]
[1727186849602,0.379912,2632.1,2630.5,3.80155]
[1727186849919,3.80024,2631.5,2630.3,3.80179]
[1727186850212,3.80042,2631.3,2630.2,3.80188]
[1727186850417,3.80056,2631.2,2630.3,3.80183]
[1727186850624,4.58933,2631.3,2630.0,0.036]
[1727186850777,0.7889,2631.3,2630.0,0.036]
[1727186850983,3.801,2630.9,2630.0,0.036]
[1727186851186,3.80079,2631.1,2630.0,0.036]
[1727186851415,0.55,2631.2,2630.0,0.036]
[1727186851711,3.80126,2630.8,2630.0,0.036]
[1727186851891,3.80108,2630.9,2630.0,3.83825]
[1727186852089,3.80108,2630.9,2630.0,0.036]
[1727186852291,3.80072,2631.1,2630.2,3.80196]
[1727186852589,0.7889,2631.3,2630.1,3.80211]
[1727186852848,3.80081,2631.1,2630.1,3.80213]
[1727186852997,0.7889,2631.3,2630.4,3.80162]
[1727186853195,0.8259,2631.9,2630.7,3.80126]
[1727186853518,3.80011,2631.5,2630.4,0.380162]
[1727186853815,3.80011,2631.5,2630.0,0.036]
[1727186853816,3.80084,2631.0,2630.1,3.80208]
[1727186854017,3.80099,2630.9,2630.0,0.036]
[1727186854226,0.8259,2630.1,2627.9,0.7999]
[1727186854432,3.80368,2629.1,2627.9,0.7999]
[1727186854604,3.80344,2629.2,2627.9,0.7999]
[1727186854805,3.80345,2629.2,2628.1,3.80496]
[1727186854987,3.80352,2629.2,2628.2,3.80483]
[1727186855185,3.80352,2629.2,2628.3,3.80473]
[1727186855390,0.760682,2629.2,2628.1,3.80496]
[1727186855613,3.80282,2629.7,2627.9,3.80527]
[1727186855614,3.80387,2628.9,2627.9,3.80527]
[1727186855810,0.8259,2629.0,2628.1,3.80492]
[1727186856018,0.8259,2629.0,2628.2,0.53900524]
[1727186856235,0.8259,2629.0,2628.2,4.34374524]
[1727186856523,3.80346,2629.2,2628.2,4.34388524]
[1727186856766,3.80366,2629.1,2628.2,0.53900524]
[1727186857122,3.80346,2629.2,2628.2,0.53900524]
[1727186857123,3.80374,2629.0,2628.2,0.53900524]
[1727186857520,4.266396,2629.2,2628.2,0.53900524]
[1727186858026,3.80381,2629.0,2628.2,0.53900524]
[1727186858428,4.266436,2629.2,2628.2,4.34385524]
[1727186858624,3.80439,2628.6,2628.2,0.53900524]
[1727186858867,3.80458,2628.5,2627.6,3.80563]
[1727186859063,3.80475,2628.3,2627.4,4.60583]
[1727186859491,3.80503,2628.1,2627.2,4.31250857]
[1727186859782,3.80503,2628.1,2627.3,0.50624857]
[1727186859967,4.185225,2628.3,2627.3,0.50624857]
[1727186860175,4.185225,2628.3,2627.3,4.31239857]
[1727186860480,4.185225,2628.3,2627.3,0.50624857]
[1727186860665,0.8259,2628.4,2627.3,0.50624857]
[1727186860868,3.80475,2628.3,2627.4,3.80592]
[1727186861263,4.63058,2628.4,2627.4,3.80592]
[1727186861503,3.80491,2628.2,2627.3,3.0]
[1727186861674,3.80491,2628.2,2627.3,6.80613]
[1727186861845,1.288958,2628.4,2627.3,3.0]
[1727186862051,3.80512,2628.1,2627.3,6.80617]
[1727186862659,3.80477,2628.3,2627.4,3.80602]
[1727186862876,0.8259,2628.4,2627.6,3.80575]
[1727186863148,3.80483,2628.3,2627.3,3.0]
[1727186863349,3.8049,2628.2,2627.3,3.0]
[1727186863778,3.80503,2628.1,2627.1,3.0766718]
[1727186863983,3.80544,2627.9,2627.2,0.52674024]
[1727186864232,0.8259,2628.4,2627.1,0.0766718]
[1727186864413,0.55,2628.0,2627.1,0.0766718]
[1727186864586,3.8051,2628.1,2627.1,0.0766718]
[1727186864929,3.80627,2627.3,2627.1,0.0766718]
[1727186865241,3.80633,2627.2,2627.1,0.0766718]
[1727186865456,0.55,2627.6,2627.1,0.0766718]
[1727186865615,3.80534,2627.9,2627.1,0.0766718]
[1727186865806,3.80535,2627.9,2627.1,3.8831418]
[1727186866004,2.0,2629.2,2627.2,0.51943774]
[1727186866202,3.80527,2628.0,2627.1,0.0766718]
[1727186866403,0.36448657,2630.2,2627.1,0.0766718]
[1727186866404,3.80424,2628.7,2627.1,0.0766718]
[1727186866603,3.80569,2627.7,2627.1,0.0766718]
[1727186866801,3.8054,2627.9,2627.1,0.0766718]
[1727186867045,3.80394,2628.9,2627.1,0.0766718]
[1727186867346,3.80577,2627.6,2627.1,0.0766718]
[1727186867637,3.80553,2627.8,2627.1,0.0766718]
[1727186867799,3.80561,2627.7,2627.1,0.0766718]
[1727186868008,3.80557,2627.8,2627.1,0.0766718]
[1727186868249,4.35534,2627.9,2627.1,0.0766718]
[1727186868446,3.8057,2627.7,2627.1,0.0766718]
[1727186868755,0.55,2627.9,2627.1,0.0766718]
[1727186868953,0.55,2628.1,2627.1,0.0766718]
[1727186869106,3.80556,2627.8,2627.1,0.0766718]
[1727186869731,3.80576,2627.6,2627.1,0.0766718]
[1727186869924,7.61113,2627.8,2627.1,0.0766718]
[1727186870344,3.80556,2627.8,2627.1,0.0766718]
[1727186870508,3.80578,2627.6,2627.1,0.0766718]
[1727186871015,3.80563,2627.7,2627.1,0.0766718]
[1727186871435,3.80603,2627.5,2627.1,0.0766718]
[1727186871687,0.55,2627.6,2627.1,0.0766718]
[1727186871852,3.80633,2627.2,2627.1,0.0766718]
[1727186872007,4.37903,2627.2,2627.1,0.0766718]
[1727186872351,4.92903,2627.2,2627.1,0.0766718]
[1727186873355,1.1227,2627.7,2627.1,0.0766718]
[1727186873501,3.80591,2627.5,2627.1,0.0766718]
[1727186873703,3.80586,2627.6,2627.1,0.0766718]
[1727186873910,0.5727,2627.7,2627.1,0.0766718]
[1727186873911,4.37839,2627.7,2627.1,0.0766718]
[1727186874101,0.5727,2627.7,2627.1,0.0766718]
[1727186874542,3.80577,2627.6,2627.1,0.0766718]
[1727186874727,3.80593,2627.5,2627.1,0.0766718]
[1727186875043,3.80577,2627.6,2627.1,0.0386718]
[1727186875342,3.80548,2627.8,2627.1,0.0386718]
[1727186875558,0.55,2627.9,2627.1,0.0386718]
[1727186875757,4.35532,2627.9,2627.1,0.0386718]
[1727186875915,4.790852,2627.9,2627.1,0.0386718]
[1727186876119,3.80574,2627.7,2627.1,0.0386718]
[1727186876612,3.80583,2627.6,2627.1,0.0386718]
[1727186876816,3.80574,2627.7,2627.1,0.0386718]
[1727186877229,3.8057,2627.7,2627.1,0.0386718]
[1727186877430,4.35539,2627.9,2627.1,3.8450618]
[1727186877630,4.35539,2627.9,2627.1,0.0386718]
[1727186877631,3.80549,2627.8,2627.1,0.0386718]
[1727186877833,4.35539,2627.9,2627.1,3.8450518]
[1727186878020,5.171439,2627.9,2627.1,0.0386718]
[1727186878221,3.80581,2627.6,2627.1,0.0386718]
[1727186878629,3.8057,2627.7,2627.1,0.0386718]
[1727186878837,3.80551,2627.8,2627.1,0.0386718]
[1727186879026,3.55,2628.1,2627.1,0.0386718]
[1727186879226,3.80571,2627.7,2627.1,0.0386718]
[1727186879660,0.55,2627.8,2627.1,0.0386718]
[1727186879824,3.80512,2628.1,2627.1,0.0386718]
[1727186880029,4.35522,2628.0,2627.2,3.80624]
[1727186880336,3.80534,2627.9,2627.1,3.8450618]
[1727186880534,0.55,2627.8,2627.1,0.0386718]
[1727186881257,7.61133,2627.7,2627.1,0.0386718]
[1727186881441,3.80563,2627.7,2627.1,0.0386718]
[1727186881639,3.55,2627.6,2627.1,0.0386718]
[1727186881950,0.55,2627.2,2627.1,0.0386718]
[1727186882320,3.80528,2628.0,2627.1,0.0386718]
[1727186882321,3.0,2627.9,2627.1,0.0386718]
[1727186882523,3.80482,2628.3,2627.5,3.80581]
[1727186882785,4.37607,2629.3,2627.6,0.07611941]
[1727186882965,3.80279,2629.7,2628.8,3.80398]
[1727186883212,3.80279,2629.7,2628.5,0.7503]
[1727186883213,4.240339,2629.7,2628.7,3.80406]
[1727186883339,0.5727,2630.8,2628.9,3.80382]
[1727186883538,0.437369,2630.7,2629.3,3.80318]
[1727186883837,0.437369,2630.7,2629.7,3.8026]
[1727186883838,3.80128,2630.7,2629.7,3.8026]
[1727186884044,4.37384,2630.8,2629.7,3.8026]
[1727186884258,4.811224,2630.8,2629.8,3.80255]
[1727186884484,3.80114,2630.8,2629.8,0.7503]
[1727186884643,3.80153,2630.6,2629.8,0.7503]
[1727186884982,3.80163,2630.5,2629.8,0.7503]
[1727186885141,3.80116,2630.8,2629.8,0.7503]
[1727186885344,3.80036,2631.4,2630.4,3.80164]
[1727186885544,0.5727,2631.7,2630.4,3.8017]
[1727186885545,3.8,2631.6,2630.4,3.8017]
[1727186885775,0.5727,2631.7,2630.5,3.87756495]
[1727186885939,0.5727,2631.7,2630.8,3.80108]
[1727186886138,0.5727,2632.1,2630.8,3.80108]
[1727186886414,2.0,2632.9,2630.7,0.7503]
[1727186886415,3.79909,2632.3,2631.0,3.80074]
[1727186886681,3.79928,2632.1,2631.1,3.80056]
[1727186886858,3.79912,2632.2,2630.9,3.80086]
[1727186887041,3.7993,2632.1,2630.9,3.80086]
[1727186887372,3.79869,2632.5,2631.0,3.80082]
[1727186887538,3.79869,2632.5,2631.4,3.80015]
[1727186887744,4.235829,2632.5,2631.4,3.80015]
[1727186888242,0.437139,2632.5,2631.5,3.80006]
[1727186888477,4.37123,2632.6,2631.7,3.79982]
[1727186888478,0.5727,2632.6,2631.7,3.79982]
[1727186888678,0.5727,2632.6,2631.7,0.7503]
[1727186889367,0.5727,2633.1,2631.8,3.0]
[1727186889578,3.79833,2632.8,2631.7,0.7503]
[1727186889738,3.79833,2632.8,2631.7,4.55008]
[1727186889942,3.79805,2633.0,2631.8,3.79956]
[1727186890176,0.816869,2632.9,2631.9,3.87549172]
[1727186890339,3.79794,2633.1,2632.0,3.87524058]
[1727186890574,3.79757,2633.3,2632.3,3.79895]
[1727186890814,3.79757,2633.3,2632.1,3.79917]
[1727186890815,3.79777,2633.2,2632.1,3.79917]
[1727186890998,3.79757,2633.3,2632.2,3.79905]
[1727186891198,0.44469418,2633.3,2632.2,3.79905]
[1727186891413,3.79777,2633.2,2632.0,3.79937]
[1727186891626,3.79823,2632.8,2631.9,6.79951]
[1727186891776,3.79795,2633.0,2631.9,3.0]
[1727186891980,3.798,2633.0,2631.9,3.0]
[1727186892282,4.1778,2633.0,2631.9,3.79943]
[1727186892487,0.3798,2633.0,2632.0,3.79929]
[1727186892708,3.79835,2632.8,2631.8,6.79964]
[1727186893011,3.79835,2632.8,2631.7,0.7503]
[1727186893012,7.5955,2633.2,2632.1,3.79914]
[1727186893308,7.5955,2633.2,2631.7,3.7503]
[1727186893309,3.79773,2633.2,2632.2,3.79908]
[1727186893510,3.79773,2633.2,2632.3,3.79895]
[1727186893714,0.6493718,2633.5,2632.2,3.79908]
[1727186893715,0.0766718,2633.5,2632.5,0.7503]
[1727186893874,3.79776,2633.2,2632.5,0.7503]
[1727186894246,3.79833,2632.8,2632.1,3.0]
[1727186894414,3.79833,2632.8,2632.0,0.7503]
[1727186894590,0.5727,2633.4,2632.0,0.7503]
[1727186894788,3.79824,2632.8,2632.0,0.7503]
[1727186894988,3.79769,2633.2,2632.3,3.79895]
[1727186895296,0.44467418,2633.3,2632.5,3.79856]
[1727186895505,3.79754,2633.3,2632.4,3.79871]
[1727186895686,0.5727,2633.8,2632.0,0.7503]
[1727186895687,6.8739918,2633.5,2632.5,3.79865]
[1727186896026,3.0766718,2633.5,2632.5,3.79865]
[1727186896187,7.56131998,2633.5,2632.7,3.79836]
[1727186896388,3.0766718,2633.5,2632.8,4.54847]
[1727186896581,3.0766718,2633.5,2632.8,0.7503]
[1727186896784,0.0766718,2633.5,2632.8,0.7503]
[1727186897198,3.79642,2634.1,2632.9,3.79796]
[1727186897199,0.5727,2634.1,2632.9,3.79796]
[1727186897411,0.0946609,2633.5,2632.9,3.79796]
[1727186897610,0.0946609,2633.5,2632.8,0.7503]
[1727186897775,3.79743,2633.4,2632.8,0.7503]
[1727186897984,0.0946609,2633.5,2632.8,0.7503]
[1727186899248,0.0946609,2633.5,2633.2,3.79763]
[1727186899412,0.0946609,2633.5,2632.9,0.07594148]
[1727186899413,3.7968,2633.8,2632.9,3.79803]
[1727186899616,0.0522921,2634.1,2632.9,3.79798]
[1727186899617,3.79695,2633.7,2632.9,3.79798]
[1727186899792,3.79763,2633.3,2632.8,0.7503]
[1727186899986,3.79792,2633.1,2632.8,0.7503]
[1727186900234,7.59583,2633.1,2632.8,0.7503]
[1727186900532,3.79773,2633.2,2632.2,0.7503]
[1727186900693,7.59558,2633.2,2632.2,0.7503]
[1727186900892,3.79847,2632.7,2632.2,0.7503]
[1727186901211,3.79847,2632.7,2631.3,3.80033]
[1727186901212,3.79847,2632.7,2631.8,0.7503]
[1727186901401,3.79935,2632.1,2631.8,0.7503]
[1727186901729,0.5727,2632.9,2631.2,0.7503]
[1727186901730,3.79949,2632.0,2631.2,0.7503]
[1727186901914,3.79911,2632.2,2631.4,3.80023]
[1727186902317,3.79911,2632.2,2631.4,3.80017]
[1727186902318,7.59833,2632.2,2631.4,3.80017]
[1727186902491,3.79911,2632.2,2631.2,4.5508]
[1727186902687,3.79941,2632.0,2631.2,4.5508]
[1727186903017,3.79976,2631.8,2631.2,0.7503]
[1727186903406,0.55,2632.4,2631.2,0.7503]
[1727186903605,3.79857,2632.6,2631.3,0.54148206]
[1727186903806,3.79892,2632.4,2631.6,3.79988]
[1727186904132,3.7986,2632.6,2631.6,3.79994]
[1727186904305,7.59725,2632.6,2631.6,4.179934]
[1727186904506,3.7986,2632.6,2631.6,4.179934]
[1727186904746,3.79876,2632.5,2631.6,3.79983]
[1727186904950,3.79876,2632.5,2631.4,6.80017]
[1727186904951,3.79904,2632.3,2631.4,6.80017]
[1727186905248,3.79903,2632.3,2631.3,6.80039]
[1727186905448,3.79903,2632.3,2631.5,3.8001]
[1727186905656,3.79871,2632.5,2631.6,3.0]
[1727186905856,3.79846,2632.7,2631.7,3.79969]
[1727186906157,3.79846,2632.7,2631.9,3.79943]
[1727186906466,3.79868,2632.5,2632.0,0.7503]
[1727186906757,0.55,2633.0,2632.0,0.7503]
[1727186906908,3.79868,2632.5,2632.0,0.7503]
[1727186907326,3.79854,2632.6,2632.0,0.7503]
[1727186907533,3.79839,2632.7,2632.0,0.7503]
[1727186907726,3.79854,2632.6,2632.0,0.7503]
[1727186907927,3.7989,2632.4,2631.5,0.7503]
[1727186908227,3.0,2632.7,2631.5,0.7503]
[1727186908428,3.79936,2632.1,2631.5,0.7503]
[1727186908829,3.0,2632.5,2631.5,0.7503]
[1727186909025,3.80001,2631.6,2631.0,0.7503]
[1727186909211,3.80029,2631.4,2631.0,0.7503]
[1727186909439,3.80001,2631.6,2631.0,0.7503]
[1727186909677,3.80012,2631.5,2631.0,0.7503]
[1727186910083,3.80001,2631.6,2631.0,0.7503]
[1727186910585,4.37212,2632.0,2631.0,0.7503]
[1727186910769,3.80056,2631.2,2630.6,0.7503]
[1727186910977,3.0,2631.7,2630.6,0.7503]
[1727186911194,4.3497,2631.8,2630.1,0.54148206]
[1727186911195,3.80188,2630.3,2630.1,0.8097]